[Event "KNSB Bekerfinale 2022-2023"]
[Site "Utrecht, Netherlands"]
[Date "2023.05.18"]
[Round "1.5"]
[White "Warmerdam, Max"]
[Black "Lopez, Jasel"]
[Result "1/2-1/2"]
[TimeControl "100 minutes + increment 10 seconds"]
[WhiteTitle "GM"]
[BlackTitle "IM"]
[WhiteFideId "1048104"]
[BlackFideId "15900045"]
[WhiteElo "2607"]
[BlackElo "2401"]

1. Nf3 {[%clk 01:39:59]} {[%emt 00:00:20]} d5 {[%clk 01:38:41]} {[%emt
00:01:40]} 2. g3 {[%clk 01:40:03]} {[%emt 00:00:06]} c6 {[%clk 01:38:36]}
{[%emt 00:00:15]} 3. Bg2 {[%clk 01:40:07]} {[%emt 00:00:05]} Bg4 {[%clk
01:37:47]} {[%emt 00:00:59]} 4. h3 {[%clk 01:39:14]} {[%emt 00:01:02]} Bh5
{[%clk 01:35:23]} {[%emt 00:02:35]} 5. c4 {[%clk 01:39:03]} {[%emt 00:00:21]}
e6 {[%clk 01:35:00]} {[%emt 00:00:34]} 6. d4 {[%clk 01:39:06]} {[%emt
00:00:06]} Nf6 {[%clk 01:34:07]} {[%emt 00:01:04]} 7. Nc3 {[%clk 01:39:06]}
{[%emt 00:00:10]} Nbd7 {[%clk 01:31:17]} {[%emt 00:03:01]} 8. cxd5 {[%clk
01:38:01]} {[%emt 00:01:14]} Bxf3 {[%clk 01:25:39]} {[%emt 00:05:48]} 9. Bxf3
{[%clk 01:37:23]} {[%emt 00:00:47]} cxd5 {[%clk 01:25:36]} {[%emt 00:00:14]} 10.
g4 {[%clk 01:15:48]} {[%emt 00:21:45]} Bb4 {[%clk 01:25:08]} {[%emt 00:00:37]}
11. g5 {[%clk 01:10:13]} {[%emt 00:05:45]} Ne4 {[%clk 01:15:08]} {[%emt
00:10:11]} 12. Bxe4 {[%clk 01:05:23]} {[%emt 00:05:01]} dxe4 {[%clk 01:13:55]}
{[%emt 00:01:22]} 13. Qc2 {[%clk 01:05:27]} {[%emt 00:00:05]} Qa5 {[%clk
01:06:08]} {[%emt 00:07:58]} 14. Rg1 {[%clk 01:00:49]} {[%emt 00:04:47]} O-O
{[%clk 01:05:16]} {[%emt 00:01:02]} 15. Bd2 {[%clk 00:59:30]} {[%emt 00:01:29]}
Qf5 {[%clk 00:50:24]} {[%emt 00:15:02]} 16. a3 {[%clk 00:53:25]} {[%emt
00:06:15]} Bxc3 {[%clk 00:48:16]} {[%emt 00:02:18]} 17. Bxc3 {[%clk 00:53:27]}
{[%emt 00:00:08]} Nb6 {[%clk 00:42:27]} {[%emt 00:05:59]} 18. e3 {[%clk
00:47:32]} {[%emt 00:06:06]} Nd5 {[%clk 00:32:58]} {[%emt 00:09:39]} 19. Rg4
{[%clk 00:46:38]} {[%emt 00:01:03]} Rfc8 {[%clk 00:32:47]} {[%emt 00:00:21]} 20.
Rc1 {[%clk 00:41:42]} {[%emt 00:05:05]} Rc6 {[%clk 00:32:48]} {[%emt 00:00:09]}
21. Qxe4 {[%clk 00:36:22]} {[%emt 00:05:30]} Rac8 {[%clk 00:32:48]} {[%emt
00:00:11]} 22. Qxf5 {[%clk 00:36:14]} {[%emt 00:00:18]} exf5 {[%clk 00:32:51]}
{[%emt 00:00:07]} 23. Rg1 {[%clk 00:36:21]} {[%emt 00:00:03]} Nxc3 {[%clk
00:32:33]} {[%emt 00:00:28]} 24. bxc3 {[%clk 00:36:16]} {[%emt 00:00:15]} Rxc3
{[%clk 00:32:34]} {[%emt 00:00:09]} 25. Rxc3 {[%clk 00:27:23]} {[%emt
00:09:04]} Rxc3 {[%clk 00:32:39]} {[%emt 00:00:05]} 26. Ke2 {[%clk 00:27:18]}
{[%emt 00:00:14]} Kf8 {[%clk 00:31:27]} {[%emt 00:01:22]} 27. a4 {[%clk
00:26:19]} {[%emt 00:01:09]} b6 {[%clk 00:26:47]} {[%emt 00:04:50]} 28. a5
{[%clk 00:16:23]} {[%emt 00:10:05]} b5 {[%clk 00:25:48]} {[%emt 00:01:10]} 29.
a6 {[%clk 00:16:26]} {[%emt 00:00:07]} Rc6 {[%clk 00:25:53]} {[%emt 00:00:05]}
30. Rb1 {[%clk 00:14:34]} {[%emt 00:02:01]} Rb6 {[%clk 00:25:57]} {[%emt
00:00:07]} 31. f3 {[%clk 00:12:25]} {[%emt 00:02:19]} Ke7 {[%clk 00:24:58]}
{[%emt 00:01:09]} 32. e4 {[%clk 00:12:24]} {[%emt 00:00:12]} fxe4 {[%clk
00:23:53]} {[%emt 00:01:15]} 33. fxe4 {[%clk 00:12:29]} {[%emt 00:00:04]} Kd6
{[%clk 00:23:48]} {[%emt 00:00:15]} 34. Kd3 {[%clk 00:12:11]} {[%emt 00:00:27]}
Ke6 {[%clk 00:15:55]} {[%emt 00:08:03]} 35. h4 {[%clk 00:10:05]} {[%emt
00:02:17]} f6 {[%clk 00:14:52]} {[%emt 00:01:13]} 36. gxf6 {[%clk 00:04:58]}
{[%emt 00:05:16]} gxf6 {[%clk 00:14:48]} {[%emt 00:00:14]} 37. d5+ {[%clk
00:05:00]} {[%emt 00:00:08]} Kd6 {[%clk 00:13:03]} {[%emt 00:01:55]} 38. Rf1
{[%clk 00:05:08]} {[%emt 00:00:02]} Kc5 {[%clk 00:13:07]} {[%emt 00:00:07]} 39.
Rc1+ {[%clk 00:05:16]} {[%emt 00:00:02]} Kd6 {[%clk 00:08:41]} {[%emt
00:04:36]} 40. Rf1 {[%clk 00:05:25]} {[%emt 00:00:01]} Kc5 {[%clk 00:07:24]}
{[%emt 00:01:27]} 41. Rc1+ {[%clk 00:05:09]} {[%emt 00:00:25]} 1/2-1/2

[Event "KNSB Bekerfinale 2022-2023"]
[Site "Utrecht, Netherlands"]
[Date "2023.05.18"]
[Round "1.6"]
[White "Lahaye, Rick"]
[Black "Pruijssers, Roeland"]
[Result "0-1"]
[TimeControl "100 minutes + increment 10 seconds"]
[WhiteTitle "IM"]
[BlackTitle "GM"]
[WhiteFideId "1007092"]
[BlackFideId "10130108"]
[WhiteElo "2427"]
[BlackElo "2534"]

1. c4 {[%clk 01:40:16]} {[%emt 00:00:04]} e6 {[%clk 01:40:06]} {[%emt
00:00:14]} 2. Nf3 {[%clk 01:39:30]} {[%emt 00:00:56]} d5 {[%clk 01:40:04]}
{[%emt 00:00:12]} 3. g3 {[%clk 01:39:07]} {[%emt 00:00:33]} d4 {[%clk
01:38:31]} {[%emt 00:01:43]} 4. d3 {[%clk 01:36:46]} {[%emt 00:02:32]} c5
{[%clk 01:34:36]} {[%emt 00:04:05]} 5. b4 {[%clk 01:30:59]} {[%emt 00:05:57]}
cxb4 {[%clk 01:33:34]} {[%emt 00:01:12]} 6. Bg2 {[%clk 01:30:49]} {[%emt
00:00:19]} Nc6 {[%clk 01:32:32]} {[%emt 00:01:11]} 7. a3 {[%clk 01:30:12]}
{[%emt 00:00:48]} Nf6 {[%clk 01:32:03]} {[%emt 00:00:39]} 8. O-O {[%clk
01:29:50]} {[%emt 00:00:31]} a5 {[%clk 01:31:44]} {[%emt 00:00:30]} 9. axb4
{[%clk 01:21:51]} {[%emt 00:08:09]} Bxb4 {[%clk 01:31:39]} {[%emt 00:00:14]} 10.
Ba3 {[%clk 01:21:44]} {[%emt 00:00:17]} Bd7 {[%clk 01:24:05]} {[%emt 00:07:44]}
11. Nbd2 {[%clk 01:08:22]} {[%emt 00:13:32]} O-O {[%clk 01:20:18]} {[%emt
00:03:57]} 12. Nb3 {[%clk 00:57:33]} {[%emt 00:11:00]} e5 {[%clk 01:16:48]}
{[%emt 00:03:40]} 13. Nc5 {[%clk 00:46:48]} {[%emt 00:10:55]} Qe7 {[%clk
00:43:32]} {[%emt 00:33:26]} 14. Nxd7 {[%clk 00:29:57]} {[%emt 00:17:01]} Nxd7
{[%clk 00:43:22]} {[%emt 00:00:19]} 15. Bb2 {[%clk 00:28:17]} {[%emt 00:01:49]}
Nc5 {[%clk 00:42:44]} {[%emt 00:00:48]} 16. e3 {[%clk 00:26:28]} {[%emt
00:02:00]} Rad8 {[%clk 00:36:19]} {[%emt 00:06:35]} 17. exd4 {[%clk 00:25:17]}
{[%emt 00:01:22]} exd4 {[%clk 00:36:26]} {[%emt 00:00:02]} 18. Nh4 {[%clk
00:19:38]} {[%emt 00:05:48]} Rfe8 {[%clk 00:25:21]} {[%emt 00:11:15]} 19. Nf5
{[%clk 00:16:03]} {[%emt 00:03:45]} Qf6 {[%clk 00:23:52]} {[%emt 00:01:39]} 20.
Ne3 {[%clk 00:14:22]} {[%emt 00:01:51]} Qg6 {[%clk 00:21:30]} {[%emt 00:02:33]}
21. Nd5 {[%clk 00:12:17]} {[%emt 00:02:15]} Nxd3 {[%clk 00:21:12]} {[%emt
00:00:28]} 22. Ba3 {[%clk 00:12:13]} {[%emt 00:00:15]} Bxa3 {[%clk 00:18:20]}
{[%emt 00:03:02]} 23. Rxa3 {[%clk 00:12:21]} {[%emt 00:00:02]} Nc5 {[%clk
00:18:20]} {[%emt 00:00:09]} 24. Nf4 {[%clk 00:12:07]} {[%emt 00:00:24]} Qd6
{[%clk 00:16:14]} {[%emt 00:02:17]} 25. Bd5 {[%clk 00:11:34]} {[%emt 00:00:44]}
Ne4 {[%clk 00:12:19]} {[%emt 00:04:04]} 26. Qh5 {[%clk 00:07:58]} {[%emt
00:03:47]} Rd7 {[%clk 00:05:49]} {[%emt 00:06:40]} 27. c5 {[%clk 00:06:18]}
{[%emt 00:01:50]} Qxc5 {[%clk 00:05:19]} {[%emt 00:00:40]} 28. Rb3 {[%clk
00:05:48]} {[%emt 00:00:40]} g6 {[%clk 00:04:42]} {[%emt 00:00:46]} 29. Qe2
{[%clk 00:04:32]} {[%emt 00:01:27]} Rxd5 {[%clk 00:04:04]} {[%emt 00:00:48]} 30.
Nxd5 {[%clk 00:04:12]} {[%emt 00:00:30]} Qxd5 {[%clk 00:04:12]} {[%emt
00:00:02]} 31. Rb5 {[%clk 00:03:32]} {[%emt 00:00:50]} Qd7 {[%clk 00:03:35]}
{[%emt 00:00:47]} 32. Qb2 {[%clk 00:03:40]} {[%emt 00:00:02]} Re7 {[%clk
00:03:37]} {[%emt 00:00:08]} 33. Qb3 {[%clk 00:03:43]} {[%emt 00:00:07]} Nd2
{[%clk 00:03:41]} {[%emt 00:00:07]} 0-1

[Event "KNSB Bekerfinale 2022-2023"]
[Site "Utrecht, Netherlands"]
[Date "2023.05.18"]
[Round "1.7"]
[White "Beerdsen, Thomas"]
[Black "Kumar, Prajit Sai"]
[Result "1-0"]
[TimeControl "100 minutes + increment 10 seconds"]
[WhiteTitle "IM"]
[WhiteFideId "1030108"]
[BlackFideId "1070207"]
[WhiteElo "2507"]
[BlackElo "2256"]

1. e4 {[%clk 01:40:16]} {[%emt 00:00:03]} c5 {[%clk 01:40:14]} {[%emt
00:00:07]} 2. Nf3 {[%clk 01:40:20]} {[%emt 00:00:05]} Nc6 {[%clk 01:40:18]}
{[%emt 00:00:06]} 3. Bb5 {[%clk 01:40:24]} {[%emt 00:00:06]} e6 {[%clk
01:39:10]} {[%emt 00:01:19]} 4. O-O {[%clk 01:40:24]} {[%emt 00:00:09]} Nge7
{[%clk 01:38:52]} {[%emt 00:00:28]} 5. Re1 {[%clk 01:40:24]} {[%emt 00:00:10]}
Nd4 {[%clk 01:37:12]} {[%emt 00:01:51]} 6. Nxd4 {[%clk 01:36:36]} {[%emt
00:03:57]} cxd4 {[%clk 01:37:16]} {[%emt 00:00:07]} 7. c3 {[%clk 01:36:40]}
{[%emt 00:00:05]} a6 {[%clk 01:37:22]} {[%emt 00:00:05]} 8. Ba4 {[%clk
01:32:08]} {[%emt 00:04:41]} b5 {[%clk 01:34:20]} {[%emt 00:03:12]} 9. Bb3
{[%clk 01:28:33]} {[%emt 00:03:44]} Nc6 {[%clk 01:33:35]} {[%emt 00:00:55]} 10.
d3 {[%clk 01:27:51]} {[%emt 00:00:52]} Bc5 {[%clk 01:29:31]} {[%emt 00:04:15]}
11. Qg4 {[%clk 01:27:01]} {[%emt 00:00:59]} Qf6 {[%clk 01:22:33]} {[%emt
00:07:08]} 12. Qg3 {[%clk 01:24:56]} {[%emt 00:02:15]} O-O {[%clk 01:18:40]}
{[%emt 00:04:04]} 13. Bf4 {[%clk 01:18:33]} {[%emt 00:06:33]} Bb7 {[%clk
01:11:23]} {[%emt 00:07:28]} 14. Nd2 {[%clk 01:13:42]} {[%emt 00:05:00]} e5
{[%clk 00:58:39]} {[%emt 00:12:54]} 15. Bg5 {[%clk 01:13:12]} {[%emt 00:00:39]}
Qg6 {[%clk 00:47:09]} {[%emt 00:11:41]} 16. Bd5 {[%clk 01:11:26]} {[%emt
00:01:55]} h6 {[%clk 00:34:24]} {[%emt 00:12:56]} 17. Bh4 {[%clk 01:08:27]}
{[%emt 00:03:09]} Qxg3 {[%clk 00:33:40]} {[%emt 00:00:54]} 18. Bxg3 {[%clk
01:08:27]} {[%emt 00:00:09]} dxc3 {[%clk 00:33:10]} {[%emt 00:00:41]} 19. bxc3
{[%clk 01:08:27]} {[%emt 00:00:10]} Rfe8 {[%clk 00:30:54]} {[%emt 00:02:26]} 20.
Reb1 {[%clk 01:04:16]} {[%emt 00:04:20]} Rab8 {[%clk 00:23:23]} {[%emt
00:07:41]} 21. d4 {[%clk 00:56:28]} {[%emt 00:07:58]} Nxd4 {[%clk 00:13:14]}
{[%emt 00:10:19]} 22. cxd4 {[%clk 00:56:12]} {[%emt 00:00:26]} Bxd4 {[%clk
00:13:20]} {[%emt 00:00:04]} 23. Bxb7 {[%clk 00:49:32]} {[%emt 00:06:49]} Bxa1
{[%clk 00:13:03]} {[%emt 00:00:28]} 24. Bxa6 {[%clk 00:48:08]} {[%emt
00:01:33]} Ra8 {[%clk 00:08:51]} {[%emt 00:04:22]} 25. Bxb5 {[%clk 00:47:28]}
{[%emt 00:00:50]} Rxa2 {[%clk 00:08:41]} {[%emt 00:00:21]} 26. Bc4 {[%clk
00:45:38]} {[%emt 00:02:00]} Rxd2 {[%clk 00:08:19]} {[%emt 00:00:32]} 27. Rxa1
{[%clk 00:45:42]} {[%emt 00:00:06]} Rc8 {[%clk 00:06:54]} {[%emt 00:01:35]} 28.
Bd5 {[%clk 00:43:01]} {[%emt 00:02:51]} Rdc2 {[%clk 00:06:20]} {[%emt
00:00:44]} 29. h4 {[%clk 00:42:11]} {[%emt 00:01:00]} Rc1+ {[%clk 00:06:07]}
{[%emt 00:00:24]} 30. Rxc1 {[%clk 00:42:15]} {[%emt 00:00:05]} Rxc1+ {[%clk
00:06:13]} {[%emt 00:00:05]} 31. Kh2 {[%clk 00:42:19]} {[%emt 00:00:05]} d6
{[%clk 00:06:17]} {[%emt 00:00:06]} 32. f4 {[%clk 00:42:22]} {[%emt 00:00:07]}
exf4 {[%clk 00:04:47]} {[%emt 00:01:41]} 33. Bxf4 {[%clk 00:40:31]} {[%emt
00:02:01]} Ra1 {[%clk 00:04:31]} {[%emt 00:00:25]} 34. Bxd6 {[%clk 00:40:30]}
{[%emt 00:00:12]} h5 {[%clk 00:04:35]} {[%emt 00:00:06]} 35. Kg3 {[%clk
00:40:14]} {[%emt 00:00:25]} Rf1 {[%clk 00:04:30]} {[%emt 00:00:15]} 36. e5
{[%clk 00:39:16]} {[%emt 00:01:08]} g6 {[%clk 00:04:11]} {[%emt 00:00:30]} 37.
Be7 {[%clk 00:38:55]} {[%emt 00:00:29]} Kg7 {[%clk 00:03:44]} {[%emt 00:00:40]}
38. Bf6+ {[%clk 00:38:57]} {[%emt 00:00:08]} Kf8 {[%clk 00:03:41]} {[%emt
00:00:12]} 39. Bf3 {[%clk 00:38:53]} {[%emt 00:00:13]} Rb1 {[%clk 00:02:51]}
{[%emt 00:01:02]} 40. Kf4 {[%clk 00:38:56]} {[%emt 00:00:07]} Kg8 {[%clk
00:02:12]} {[%emt 00:00:49]} 41. Kg5 {[%clk 00:33:10]} {[%emt 00:05:56]} Kh7
{[%clk 00:02:20]} {[%emt 00:00:02]} 42. Be7 {[%clk 00:29:05]} {[%emt 00:04:14]}
Kg7 {[%clk 00:02:19]} {[%emt 00:00:12]} 43. Bd5 {[%clk 00:27:59]} {[%emt
00:01:16]} Rd1 {[%clk 00:01:57]} {[%emt 00:00:32]} 44. Bf6+ {[%clk 00:27:44]}
{[%emt 00:00:24]} Kg8 {[%clk 00:01:42]} {[%emt 00:00:26]} 45. Bf3 {[%clk
00:27:30]} {[%emt 00:00:24]} Rb1 {[%clk 00:01:14]} {[%emt 00:00:38]} 46. e6
{[%clk 00:26:14]} {[%emt 00:01:26]} fxe6 {[%clk 00:00:35]} {[%emt 00:00:50]} 47.
Kxg6 {[%clk 00:26:17]} {[%emt 00:00:06]} Rb5 {[%clk 00:00:29]} {[%emt
00:00:16]} 48. Bxh5 {[%clk 00:26:09]} {[%emt 00:00:18]} Rb7 {[%clk 00:00:30]}
{[%emt 00:00:09]} 49. Bf3 {[%clk 00:26:02]} {[%emt 00:00:17]} Rc7 {[%clk
00:00:34]} {[%emt 00:00:06]} 50. h5 {[%clk 00:26:06]} {[%emt 00:00:06]} Rd7
{[%clk 00:00:18]} {[%emt 00:00:26]} 51. h6 {[%clk 00:26:10]} {[%emt 00:00:06]}
e5 {[%clk 00:00:27]} {[%emt 00:00:01]} 52. Bd5+ {[%clk 00:26:07]} {[%emt
00:00:13]} 1-0

[Event "KNSB Bekerfinale 2022-2023"]
[Site "Utrecht, Netherlands"]
[Date "2023.05.18"]
[Round "1.8"]
[White "Blokhuis, Jeroen"]
[Black "Kuipers, Stefan"]
[Result "0-1"]
[TimeControl "100 minutes + increment 10 seconds"]
[WhiteTitle "FM"]
[BlackTitle "IM"]
[WhiteFideId "1005456"]
[BlackFideId "1018400"]
[WhiteElo "2311"]
[BlackElo "2446"]

1. e4 {[%clk 01:40:16]} {[%emt 00:00:03]} c6 {[%clk 01:40:16]} {[%emt
00:00:05]} 2. d4 {[%clk 01:40:22]} {[%emt 00:00:04]} d5 {[%clk 01:40:21]}
{[%emt 00:00:05]} 3. exd5 {[%clk 01:40:22]} {[%emt 00:00:11]} cxd5 {[%clk
01:40:24]} {[%emt 00:00:06]} 4. Bd3 {[%clk 01:40:27]} {[%emt 00:00:05]} Nc6
{[%clk 01:40:15]} {[%emt 00:00:17]} 5. c3 {[%clk 01:40:34]} {[%emt 00:00:04]}
Qc7 {[%clk 01:40:13]} {[%emt 00:00:11]} 6. Ne2 {[%clk 01:39:55]} {[%emt
00:00:50]} Bg4 {[%clk 01:38:11]} {[%emt 00:02:11]} 7. f3 {[%clk 01:38:42]}
{[%emt 00:01:23]} Bd7 {[%clk 01:36:45]} {[%emt 00:01:36]} 8. Bf4 {[%clk
01:38:44]} {[%emt 00:00:09]} e5 {[%clk 01:34:30]} {[%emt 00:02:24]} 9. dxe5
{[%clk 01:30:57]} {[%emt 00:07:58]} Nxe5 {[%clk 01:33:50]} {[%emt 00:00:49]} 10.
Bc2 {[%clk 01:27:10]} {[%emt 00:03:58]} Nf6 {[%clk 01:32:19]} {[%emt 00:01:41]}
11. Nd2 {[%clk 01:22:52]} {[%emt 00:04:29]} Bd6 {[%clk 01:30:53]} {[%emt
00:01:34]} 12. Bg3 {[%clk 01:22:26]} {[%emt 00:00:37]} O-O {[%clk 01:28:07]}
{[%emt 00:02:56]} 13. O-O {[%clk 01:08:44]} {[%emt 00:13:53]} Rfe8 {[%clk
01:20:00]} {[%emt 00:08:17]} 14. Nd4 {[%clk 01:06:21]} {[%emt 00:02:33]} Nh5
{[%clk 01:17:35]} {[%emt 00:02:34]} 15. Rc1 {[%clk 00:38:02]} {[%emt 00:28:30]}
Nxg3 {[%clk 01:12:09]} {[%emt 00:05:36]} 16. hxg3 {[%clk 00:37:30]} {[%emt
00:00:42]} Qb6 {[%clk 01:12:00]} {[%emt 00:00:15]} 17. f4 {[%clk 00:12:37]}
{[%emt 00:25:07]} Bg4 {[%clk 00:41:02]} {[%emt 00:31:08]} 18. N2f3 {[%clk
00:11:08]} {[%emt 00:01:40]} Bxf3 {[%clk 00:40:44]} {[%emt 00:00:28]} 19. gxf3
{[%clk 00:09:55]} {[%emt 00:01:23]} Nc4 {[%clk 00:40:45]} {[%emt 00:00:08]} 20.
b3 {[%clk 00:09:04]} {[%emt 00:01:02]} Ne3 {[%clk 00:34:09]} {[%emt 00:06:45]}
21. Qd3 {[%clk 00:09:07]} {[%emt 00:00:07]} g6 {[%clk 00:33:58]} {[%emt
00:00:21]} 22. Rfe1 {[%clk 00:07:11]} {[%emt 00:02:06]} Ba3 {[%clk 00:28:58]}
{[%emt 00:05:11]} 23. Rb1 {[%clk 00:06:01]} {[%emt 00:01:20]} Nf5 {[%clk
00:28:32]} {[%emt 00:00:36]} 24. Kg2 {[%clk 00:05:36]} {[%emt 00:00:35]} Nxd4
{[%clk 00:28:34]} {[%emt 00:00:07]} 25. Qxd4 {[%clk 00:04:49]} {[%emt
00:00:58]} Qxd4 {[%clk 00:24:37]} {[%emt 00:04:07]} 26. cxd4 {[%clk 00:04:55]}
{[%emt 00:00:04]} Bb4 {[%clk 00:24:40]} {[%emt 00:00:07]} 27. Re5 {[%clk
00:05:01]} {[%emt 00:00:04]} f6 {[%clk 00:24:01]} {[%emt 00:00:49]} 28. Rxe8+
{[%clk 00:04:19]} {[%emt 00:00:52]} Rxe8 {[%clk 00:24:08]} {[%emt 00:00:02]} 29.
Kf2 {[%clk 00:04:15]} {[%emt 00:00:14]} Rc8 {[%clk 00:24:00]} {[%emt 00:00:19]}
30. Bd3 {[%clk 00:04:14]} {[%emt 00:00:11]} Bc3 {[%clk 00:24:03]} {[%emt
00:00:06]} 31. Rd1 {[%clk 00:03:05]} {[%emt 00:01:19]} Bxd4+ {[%clk 00:24:00]}
{[%emt 00:00:14]} 32. Kg2 {[%clk 00:03:13]} {[%emt 00:00:02]} Be3 {[%clk
00:21:54]} {[%emt 00:02:15]} 33. f5 {[%clk 00:03:17]} {[%emt 00:00:07]} g5
{[%clk 00:21:49]} {[%emt 00:00:14]} 34. Bb1 {[%clk 00:03:20]} {[%emt 00:00:07]}
d4 {[%clk 00:21:16]} {[%emt 00:00:43]} 35. Bd3 {[%clk 00:03:23]} {[%emt
00:00:07]} h5 {[%clk 00:20:15]} {[%emt 00:01:11]} 36. Bc4+ {[%clk 00:02:03]}
{[%emt 00:01:31]} Kf8 {[%clk 00:20:11]} {[%emt 00:00:13]} 37. Rh1 {[%clk
00:02:03]} {[%emt 00:00:10]} b5 {[%clk 00:19:38]} {[%emt 00:00:43]} 38. Bd3
{[%clk 00:00:33]} {[%emt 00:01:41]} a6 {[%clk 00:17:09]} {[%emt 00:02:39]} 39.
Rd1 {[%clk 00:00:20]} {[%emt 00:00:23]} Ke7 {[%clk 00:16:56]} {[%emt 00:00:22]}
40. Kf1 {[%clk 00:00:17]} {[%emt 00:00:13]} h4 {[%clk 00:16:28]} {[%emt
00:00:38]} 41. Kg2 {[%clk 00:00:16]} {[%emt 00:00:12]} Kd6 {[%clk 00:15:05]}
{[%emt 00:01:32]} 42. Be4 {[%clk 00:00:21]} {[%emt 00:00:05]} Ke5 {[%clk
00:14:01]} {[%emt 00:01:14]} 43. gxh4 {[%clk 00:00:28]} {[%emt 00:00:04]} gxh4
{[%clk 00:14:03]} {[%emt 00:00:08]} 44. Kh3 {[%clk 00:00:35]} {[%emt 00:00:03]}
Kf4 {[%clk 00:13:38]} {[%emt 00:00:35]} 45. Bb7 {[%clk 00:00:00]} {[%emt
00:00:40]} Ke5 {[%emt 00:00:09]} 0-1

[Event "KNSB Bekerfinale 2022-2023"]
[Site "Utrecht, Netherlands"]
[Date "2023.05.18"]
[Round "2.1"]
[White "Zwirs, Nico"]
[Black "Fridman, Daniel"]
[Result "0-1"]
[TimeControl "100 minutes + increment 10 seconds"]
[WhiteTitle "IM"]
[BlackTitle "GM"]
[WhiteFideId "1036432"]
[BlackFideId "11600454"]
[WhiteElo "2447"]
[BlackElo "2574"]

1. e4 {[%clk 01:40:19]} {[%emt 01:07:57]} c6 {[%clk 01:40:13]} {[%emt
00:00:07]} 2. d4 {[%clk 01:40:10]} {[%emt 00:00:19]} d5 {[%clk 01:40:17]}
{[%emt 00:00:06]} 3. exd5 {[%clk 01:39:35]} {[%emt 00:00:45]} cxd5 {[%clk
01:40:20]} {[%emt 00:00:06]} 4. Nf3 {[%clk 01:39:39]} {[%emt 00:00:07]} Nc6
{[%clk 01:40:23]} {[%emt 00:00:06]} 5. c3 {[%clk 01:39:25]} {[%emt 00:00:24]}
Bg4 {[%clk 01:39:40]} {[%emt 00:02:17]} 6. h3 {[%clk 01:36:45]} Bh5 {[%clk
01:39:40]} {[%emt 00:01:37]} 7. Qb3 {[%clk 01:31:33]} Bxf3 {[%clk 01:35:01]}
{[%emt 00:10:10]} 8. Qxb7 {[%clk 01:23:22]} Qc8 {[%clk 01:35:03]} {[%emt
00:08:30]} 9. Qxc8+ {[%clk 01:21:47]} Rxc8 {[%clk 01:35:06]} {[%emt 00:01:52]}
10. gxf3 {[%clk 01:21:53]} {[%emt 00:00:05]} Nxd4 {[%clk 01:35:08]} {[%emt
00:00:07]} 11. Kd1 {[%clk 01:21:36]} {[%emt 00:00:27]} Nc6 {[%clk 01:34:38]}
{[%emt 00:00:41]} 12. Be3 {[%clk 01:19:09]} {[%emt 00:02:37]} e6 {[%clk
01:23:13]} {[%emt 00:11:35]} 13. Bb5 {[%clk 01:16:28]} {[%emt 00:02:50]} a5
{[%clk 01:22:14]} {[%emt 00:01:09]} 14. Nd2 {[%clk 01:13:44]} {[%emt 00:02:55]}
Be7 {[%clk 01:17:56]} {[%emt 00:04:28]} 15. Nb3 {[%clk 01:09:33]} {[%emt
00:04:21]} Bd8 {[%clk 01:17:45]} {[%emt 00:00:21]} 16. Bc5 {[%clk 01:03:24]}
{[%emt 00:06:19]} Nge7 {[%clk 01:15:54]} {[%emt 00:02:01]} 17. Nd4 {[%clk
00:59:25]} {[%emt 00:04:09]} e5 {[%clk 01:15:32]} {[%emt 00:00:32]} 18. Nxc6
{[%clk 00:48:36]} {[%emt 00:10:59]} Nxc6 {[%clk 01:15:31]} {[%emt 00:00:11]} 19.
Re1 {[%clk 00:45:55]} {[%emt 00:02:51]} f6 {[%clk 01:14:58]} {[%emt 00:00:42]}
20. f4 {[%clk 00:39:42]} {[%emt 00:06:23]} Kf7 {[%clk 01:13:18]} {[%emt
00:01:49]} 21. Ba6 {[%clk 00:31:48]} {[%emt 00:08:04]} Rb8 {[%clk 01:04:30]}
{[%emt 00:08:58]} 22. Kc2 {[%clk 00:31:38]} {[%emt 00:00:20]} Be7 {[%clk
00:57:54]} {[%emt 00:06:45]} 23. Bxe7 {[%clk 00:20:12]} {[%emt 00:11:37]} Kxe7
{[%clk 00:57:47]} {[%emt 00:00:17]} 24. Rad1 {[%clk 00:20:10]} {[%emt
00:00:12]} Rhd8 {[%clk 00:56:05]} {[%emt 00:01:52]} 25. fxe5 {[%clk 00:19:52]}
{[%emt 00:00:29]} fxe5 {[%clk 00:56:08]} {[%emt 00:00:07]} 26. Rd2 {[%clk
00:19:48]} {[%emt 00:00:13]} d4 {[%clk 00:47:27]} {[%emt 00:08:52]} 27. f4
{[%clk 00:07:14]} {[%emt 00:12:44]} dxc3 {[%clk 00:45:57]} {[%emt 00:01:40]} 28.
bxc3 {[%clk 00:03:27]} {[%emt 00:03:58]} Rxd2+ {[%clk 00:45:00]} {[%emt
00:01:06]} 29. Kxd2 {[%clk 00:03:36]} Rb2+ {[%clk 00:44:49]} {[%emt 00:00:20]}
30. Kd3 {[%clk 00:01:54]} {[%emt 00:01:53]} Kd6 {[%clk 00:43:22]} {[%emt
00:01:37]} 31. fxe5+ {[%clk 00:02:01]} {[%emt 00:00:04]} Nxe5+ {[%clk
00:43:12]} {[%emt 00:00:19]} 32. Ke4 {[%clk 00:02:09]} Nd7 {[%clk 00:41:45]}
{[%emt 00:01:38]} 33. Rd1+ {[%clk 00:01:50]} {[%emt 00:00:30]} Kc6 {[%clk
00:39:52]} {[%emt 00:02:03]} 34. Bc4 {[%clk 00:01:43]} {[%emt 00:00:16]} Nf6+
{[%clk 00:38:13]} {[%emt 00:01:50]} 35. Kd4 {[%clk 00:01:16]} {[%emt 00:00:36]}
Rh2 {[%clk 00:37:42]} {[%emt 00:00:42]} 36. Rd3 {[%clk 00:00:53]} {[%emt
00:00:33]} a4 {[%clk 00:36:44]} {[%emt 00:01:09]} 37. Rg3 {[%clk 00:00:26]}
{[%emt 00:00:36]} g6 {[%clk 00:34:39]} {[%emt 00:02:16]} 38. Rf3 {[%clk
00:00:31]} {[%emt 00:00:05]} Rd2+ {[%clk 00:33:12]} {[%emt 00:01:36]} 39. Bd3
{[%clk 00:00:13]} {[%emt 00:00:29]} Nd7 {[%clk 00:32:56]} {[%emt 00:00:25]} 0-1